bitfinex/quotes_ETHUSD_20230119
["timestamp","ask_amount","ask_price","bid_price","bid_amount"]
[1674087059726,5.17026,1518.7,1518.3,1.42421859]
[1674087059935,5.17026,1518.7,1518.3,1.0]
[1674087060224,5.17026,1518.7,1518.3,7.58631]
[1674087060355,5.17026,1518.7,1518.3,7.65031]
[1674087060356,4.67636,1518.7,1518.3,7.65031]
[1674087060726,6.69136,1518.7,1518.3,0.064]
[1674087060890,0.467636,1518.6,1518.2,0.0047459]
[1674087061099,4.60987,1518.5,1518.2,0.0047459]
[1674087061323,10.2378496,1518.5,1518.2,0.0047459]
[1674087061556,10.3048496,1518.5,1518.2,0.0047459]
[1674087062248,4.67687,1518.5,1518.2,0.0047459]
[1674087062510,0.067,1518.6,1518.2,13.1781059]
[1674087062726,5.16999,1518.8,1518.2,13.2421059]
[1674087062941,4.67609,1518.8,1518.2,13.2421059]
[1674087063089,5.99409,1518.8,1518.2,13.2421059]
[1674087063295,6.06109,1518.8,1518.2,13.2421059]
[1674087063559,6.06109,1518.8,1518.4,6.5858]
[1674087063732,6.06109,1518.8,1518.4,0.064]
[1674087063733,10.67016,1518.8,1518.4,0.064]
[1674087063944,9.28516,1518.8,1518.3,6.6501]
[1674087064160,11.2301747,1518.8,1518.3,13.23618]
[1674087064369,6.6210847,1518.8,1518.3,13.23618]
[1674087064595,6.6210847,1518.8,1518.3,14.23618]
[1674087065463,1.372,1518.7,1518.3,14.23618]
[1674087065773,1.372,1518.7,1518.4,1.423618]
[1674087065988,1.374,1518.6,1518.3,0.066]
[1674087066155,1.385,1518.4,1518.3,0.002]
[1674087066518,5.99511,1518.4,1518.2,0.0047459]
[1674087066659,7.616572,1518.4,1518.2,0.0047459]
[1674087066867,7.122572,1518.4,1518.2,0.0047459]
[1674087067363,1.385,1518.3,1518.2,0.0047459]
[1674087067499,7.37841,1518.3,1518.2,0.0047459]
[1674087067712,13.3674182,1518.3,1518.2,0.0047459]
[1674087067974,14.3674182,1518.3,1518.2,0.0047459]
[1674087068363,13.3674182,1518.3,1518.2,0.0047459]
[1674087068574,14.0915182,1518.3,1518.2,0.0047459]
[1674087068784,15.0915182,1518.3,1518.2,0.0047459]
[1674087068990,0.002,1518.1,1517.7,0.07561098]
[1674087069201,9.22278,1518.0,1517.7,0.07561098]
[1674087069412,1.375,1517.8,1517.7,0.07561098]
[1674087069659,11.16188,1518.0,1517.7,0.07561098]
[1674087069660,15.77343,1518.0,1517.7,0.07561098]
[1674087069817,19.347913,1518.0,1517.7,0.07561098]
[1674087070364,0.067,1518.0,1517.7,7.30252098]
[1674087070576,0.002,1518.1,1517.8,1.0]
[1674087070915,0.002,1518.1,1518.0,1.0]
[1674087071125,0.002,1518.1,1518.0,2.417608]
[1674087071721,0.002,1518.1,1518.0,15.592828]
[1674087071947,0.002,1518.1,1518.0,15.656828]
[1674087073121,0.002,1518.1,1518.0,18.656828]
[1674087073336,1.9409,1518.8,1518.0,26.850438]
[1674087073510,0.4939,1518.8,1518.1,9.95666344]
[1674087073718,0.4939,1518.8,1518.3,13.17254]
[1674087074049,0.4939,1518.8,1518.3,13.23654]
[1674087074279,0.4939,1518.8,1518.4,8.8952579]
[1674087074452,0.4939,1518.8,1518.4,8.9592579]
[1674087074856,1.448,1519.0,1518.4,15.5451279]
[1674087075125,1.17106702,1519.1,1518.6,6.58481]
[1674087075276,0.4938,1519.1,1518.6,6.64881]
[1674087076340,3.4938,1519.1,1518.6,6.64881]
[1674087077594,13.38713702,1519.1,1518.6,0.064]
[1674087077840,1.385,1518.9,1518.3,9.58625]
[1674087078127,1.385,1518.9,1518.4,6.58586]
[1674087078348,1.385,1518.9,1518.4,8.273471]
[1674087078533,1.335,1518.9,1518.4,8.273471]
[1674087078864,1.8789,1518.8,1518.4,0.064]
[1674087079123,1.8789,1518.8,1518.2,0.064]
[1674087079287,1.385,1518.7,1518.1,9.3380038]
[1674087079616,1.385,1518.7,1518.1,9.3360038]
[1674087079850,1.385,1518.7,1518.1,2.7490438]
[1674087079851,5.99422,1518.7,1518.1,2.7490438]
[1674087080071,0.1385,1518.6,1518.1,2.6850438]
[1674087080213,0.1385,1518.6,1518.1,15.8591738]
[1674087080428,1.452,1518.7,1518.1,15.8591738]
[1674087080429,1.402,1518.9,1518.1,20.19279344]
[1674087080746,4.58044702,1519.0,1518.2,6.64661964]
[1674087080747,2.97244702,1519.0,1518.2,6.64661964]
[1674087080962,1.385,1519.0,1518.4,19.7571]
[1674087081327,2.55606702,1519.1,1518.4,19.8211]
[1674087081471,2.55606702,1519.1,1518.5,1.0]
[1674087081687,2.55606702,1519.1,1518.6,6.5847]
[1674087081688,3.24110327,1519.1,1518.6,6.5847]
[1674087081892,3.24110327,1519.1,1518.6,13.23371]
[1674087081893,1.385,1519.1,1518.6,13.23371]
[1674087082185,1.35763252,1519.2,1518.7,1.0]
[1674087082336,0.6133655,1519.2,1518.8,13.16784]
[1674087082688,0.6133655,1519.2,1518.8,15.307048]
[1674087082689,0.1195655,1519.2,1518.8,15.307048]
[1674087082846,0.1195655,1519.2,1518.9,1.0]
[1674087083477,0.1195655,1519.2,1518.8,16.309048]
[1674087083699,0.1195655,1519.2,1518.8,16.307048]
[1674087084117,0.36277059,1519.2,1518.8,8.723128]
[1674087084323,7.03273761,1519.2,1518.8,0.064]
[1674087084548,7.09973761,1519.2,1518.7,1.0]
[1674087084745,7.09973761,1519.2,1518.7,2.51714]
[1674087085464,7.09973761,1519.2,1518.7,1.0]
[1674087085675,7.09973761,1519.2,1518.6,1.066]
[1674087085921,5.98503,1519.1,1518.6,4.0]
[1674087086141,1.38,1519.0,1518.5,0.066]
[1674087086352,1.385,1518.9,1518.3,6.65007]
[1674087086533,1.374,1518.7,1518.3,0.064]
[1674087086726,1.374,1518.7,1518.1,24.6196338]
[1674087086727,5.98321,1518.7,1518.1,24.6196338]
[1674087086976,6.05021,1518.7,1518.1,18.0325638]
[1674087087377,6.05021,1518.7,1518.2,1.0]
[1674087087567,1.381,1518.6,1518.1,0.066]
[1674087087777,1.381,1518.6,1518.0,36.92159]
[1674087088044,10.60026,1518.6,1518.0,0.064]
[1674087088198,1.060026,1518.5,1518.0,8.02982061]
[1674087088411,1.060026,1518.5,1518.1,1.0]
[1674087088878,7.046846,1518.5,1518.0,0.066]
[1674087089090,0.7046846,1518.4,1517.9,1.76721813]
[1674087089306,0.7046846,1518.4,1517.8,44.19992605]
[1674087089307,5.3148646,1518.4,1517.8,44.19992605]
[1674087089524,5.3818646,1518.4,1517.9,2.1439493]
[1674087089687,0.53818646,1518.3,1517.9,1.0]
[1674087089888,0.53818646,1518.3,1517.8,37.61171605]
[1674087090089,0.53818646,1518.3,1517.8,6.65209]
[1674087090344,0.53818646,1518.3,1517.9,1.0]
[1674087090835,1.92318646,1518.3,1517.9,1.0]
[1674087091091,0.19231865,1518.2,1517.9,1.0]
[1674087093785,0.1385,1518.3,1517.9,14.24007]
[1674087094048,0.1385,1518.3,1517.9,13.24007]
[1674087094266,0.1385,1518.3,1517.9,7.65203]
[1674087094952,0.1385,1518.3,1517.9,0.064]
[1674087095314,0.1385,1518.3,1517.8,37.92238]
[1674087095536,4.74892,1518.3,1517.9,1.0]
[1674087095679,0.474892,1518.2,1517.9,1.0]
[1674087096146,0.474892,1518.2,1517.8,1.066]
[1674087096319,5.085652,1518.2,1517.8,1.0]
[1674087096533,0.5085652,1518.1,1517.7,22.97836098]
[1674087096752,0.5085652,1518.1,1517.7,10.41578703]
[1674087096958,0.5085652,1518.1,1517.8,1.0]
[1674087097829,0.5085652,1518.1,1517.8,0.95]
[1674087098050,0.067,1518.2,1517.8,14.12693]
[1674087098367,1.942,1518.5,1517.8,14.19093]
[1674087098518,4.875,1518.5,1518.0,6.58731]
[1674087098726,1.875,1518.5,1518.0,6.65131]
[1674087098938,1.445,1518.6,1518.0,13.23892]
[1674087099211,0.067,1518.8,1518.2,20.75959]
[1674087099374,4.60892,1518.8,1518.2,20.82359]
[1674087099586,5.10282,1518.8,1518.2,20.82359]
[1674087099810,0.510282,1518.7,1518.2,23.20879592]
[1674087100418,5.16982,1518.8,1518.2,23.20879592]
[1674087100989,5.16982,1518.8,1518.4,13.17132]
[1674087100990,0.067,1518.8,1518.4,13.17132]
[1674087101162,1.385,1518.9,1518.4,14.23532]
[1674087101810,5.9936,1518.9,1518.4,13.23532]
[1674087102020,7.176869,1518.9,1518.4,13.23532]
[1674087102849,2.568269,1518.9,1518.4,13.23532]
[1674087103055,2.501269,1518.9,1518.4,13.23532]
[1674087103302,7.109939,1518.9,1518.4,13.23532]
[1674087103480,7.176939,1518.9,1518.4,13.23532]
[1674087104053,7.176939,1518.9,1518.4,14.98572832]
[1674087104275,7.176939,1518.9,1518.4,13.98572832]
[1674087104648,7.176939,1518.9,1518.4,14.98572832]
[1674087105068,7.176939,1518.9,1518.4,13.23532]
[1674087105314,7.176939,1518.9,1518.4,14.23532]
[1674087105946,11.785609,1518.9,1518.4,6.64966]
[1674087106967,11.785609,1518.9,1518.4,0.064]
[1674087107174,5.7876409,1518.8,1518.3,9.64994]
[1674087107382,5.8546409,1518.8,1518.3,9.64994]
[1674087107995,5.8546409,1518.8,1518.3,10.64994]
[1674087108266,10.4637209,1518.8,1518.3,10.64994]
[1674087108416,10.4637209,1518.8,1518.3,13.13244]
[1674087108626,10.4637209,1518.8,1518.3,19.71875]
[1674087109108,5.8546409,1518.8,1518.4,1.0]
[1674087109419,0.067,1518.8,1518.5,13.1707]
[1674087109634,0.88616054,1519.1,1518.5,13.2347]
[1674087109851,5.15410341,1519.1,1518.6,1.32347]
[1674087110000,5.22110341,1519.1,1518.7,6.58436]
[1674087110207,5.22110341,1519.1,1518.7,6.64836]
[1674087110450,0.20889352,1519.1,1518.7,13.23293]
[1674087110659,3.14189352,1519.1,1518.7,13.23293]
[1674087110889,0.14189352,1519.1,1518.7,13.23293]
[1674087112939,0.14189352,1519.1,1518.7,14.23293]
[1674087113255,0.14189352,1519.1,1518.7,13.23293]
[1674087113461,0.14189352,1519.1,1518.7,15.34723]
[1674087114001,0.14189352,1519.1,1518.7,15.34523]
[1674087114235,0.14189352,1519.1,1518.7,15.34723]
[1674087114406,0.14189352,1519.1,1518.7,0.064]
[1674087114407,4.74994352,1519.1,1518.7,0.064]
[1674087114617,4.74994352,1519.1,1518.6,6.6486]
[1674087115294,9.35799352,1519.1,1518.6,6.6486]
[1674087115521,9.42499352,1519.1,1518.6,6.6486]
[1674087115824,1.61976637,1519.0,1518.6,0.064]
[1674087115987,1.385,1518.7,1518.3,29.06846]
[1674087116195,10.60366,1518.7,1518.3,0.064]
[1674087116426,0.1385,1518.6,1518.2,0.064]
[1674087116630,4.74813,1518.6,1518.1,13.23795]
[1674087116933,0.474813,1518.5,1518.1,6.65094]
[1674087117097,5.084663,1518.5,1518.1,7.65094]
[1674087117315,5.151663,1518.5,1518.1,6.65094]
[1674087118322,0.5151663,1518.4,1518.1,6.65094]
[1674087119998,1.8891663,1518.4,1518.1,0.064]
[1674087120209,6.4993863,1518.4,1518.0,6.65131]
[1674087120527,6.5663863,1518.4,1518.0,6.65131]
[1674087121143,0.65663863,1518.3,1518.0,6.65131]
[1674087121563,0.65373765,1518.3,1518.0,6.65131]
[1674087121823,6.5663863,1518.4,1518.0,6.65131]
[1674087122045,0.067,1518.4,1518.0,14.23892]
[1674087122196,1.452,1518.6,1518.0,14.23892]
[1674087122568,1.385,1518.6,1518.0,14.23892]
[1674087122719,1.385,1518.6,1518.1,1.423892]
[1674087122925,1.385,1518.6,1518.2,6.58663]
[1674087123264,1.385,1518.6,1518.2,6.65063]
[1674087123677,1.385,1518.5,1518.2,0.064]
[1674087124031,1.385,1518.4,1518.0,6.65131]
[1674087124195,1.385,1518.4,1518.0,8.4391053]
[1674087125265,5.99511,1518.4,1518.0,8.4391053]
[1674087125490,6.06211,1518.4,1518.0,8.4391053]
[1674087125666,1.385,1518.3,1518.0,0.064]
[1674087125879,1.372,1518.2,1517.8,8.35577208]
[1674087126142,1.372,1518.2,1517.8,6.65242]
[1674087126324,1.372,1518.2,1517.8,13.17472629]
[1674087126517,1.372,1518.2,1517.8,14.87827061]
[1674087127257,1.372,1518.2,1517.9,2.14394142]
[1674087127502,10.67324,1518.3,1517.9,1.0]
[1674087127697,12.36177415,1518.3,1517.8,22.15631666]
[1674087128043,7.75114415,1518.3,1517.9,1.14391681]
[1674087128258,3.14053415,1518.3,1517.9,1.14391681]
[1674087128433,1.442,1518.4,1517.9,14.31998681]
[1674087128635,1.375,1518.4,1517.9,14.94361432]
[1674087128875,1.375,1518.4,1517.9,13.24007]
[1674087129026,1.375,1518.4,1517.9,18.57914874]
[1674087129355,1.375,1518.4,1517.9,19.57914874]
[1674087129793,33.87682,1518.6,1518.1,13.17392]
[1674087130007,6.06162,1518.6,1518.1,14.23792]
[1674087130231,6.06162,1518.6,1518.1,16.320649]
[1674087130447,1.452,1518.6,1518.1,16.320649]
[1674087130599,1.385,1518.6,1518.2,1.0]
[1674087130809,1.385,1518.6,1518.3,6.68625]
[1674087131066,1.385,1518.6,1518.3,6.75025]
[1674087131803,1.385,1518.6,1518.3,6.74814603]
[1674087132810,1.385,1518.6,1518.3,0.064]
[1674087133059,1.385,1518.6,1518.2,6.65056]
[1674087133649,1.385,1518.6,1518.2,13.2373]
[1674087133992,1.385,1518.6,1518.2,6.65056]
[1674087134415,1.375,1518.5,1518.2,0.064]
[1674087134605,5.98341,1518.3,1517.9,6.65398]
[1674087134795,7.570794,1518.3,1517.9,6.65198]
[1674087135444,7.214794,1518.3,1517.9,6.65198]
[1674087135658,7.214794,1518.3,1517.9,7.65198]
[1674087136378,7.214794,1518.3,1517.9,0.064]
[1674087136588,7.214794,1518.3,1517.8,15.94466162]
[1674087136799,7.214794,1518.3,1517.8,20.50351224]
[1674087137328,11.825204,1518.3,1517.8,13.91521224]
[1674087137557,11.825204,1518.3,1517.8,0.064]
[1674087137789,5.99614,1518.1,1517.7,21.40661098]
[1674087138006,6.06314,1518.1,1517.7,1.84369512]
[1674087138170,1.372,1518.0,1517.7,0.07561098]
[1674087139456,1.372,1518.0,1517.7,1.07561098]
[1674087140073,7.130527,1518.1,1517.7,7.66443098]
[1674087140263,7.130527,1518.1,1517.7,14.31734098]
[1674087140264,0.067,1518.1,1517.7,14.31734098]
[1674087140475,6.624924,1518.3,1517.8,1.14396885]
[1674087140476,0.5611,1518.3,1517.8,1.14396885]
[1674087140740,26.74583,1518.5,1517.9,1.0]
[1674087140741,27.30683,1518.5,1517.9,1.0]
[1674087140957,22.697,1518.5,1518.0,13.27478]
[1674087141271,0.067,1518.5,1518.0,13.33878]
[1674087141420,12.72838,1518.6,1518.2,6.58673]
[1674087141632,0.561,1518.6,1518.3,1.0]
[1674087141846,0.5609,1518.7,1518.3,7.58599]
[1674087142112,4.60956,1518.6,1518.3,0.064]
[1674087142304,4.60956,1518.6,1518.2,1.0]
[1674087142790,4.60956,1518.6,1518.1,14.23978]
[1674087143006,12.181554,1518.6,1518.1,0.064]
[1674087143250,12.248554,1518.6,1518.0,6.65158]
[1674087143462,12.248554,1518.6,1518.0,1.064]
[1674087143629,12.248554,1518.6,1518.0,1.0]
[1674087143996,4.61026,1518.4,1518.0,1.0]
[1674087145430,4.61026,1518.4,1518.0,7.58757]
[1674087145642,4.61026,1518.4,1518.0,7.65157]
[1674087146205,5.9017154,1518.5,1518.0,7.65157]
[1674087146422,0.067,1518.5,1518.1,0.765157]
[1674087146728,8.5218,1518.7,1518.3,7.58606]
[1674087146886,0.5609,1518.7,1518.3,7.63806]
[1674087147163,0.4939,1518.7,1518.3,7.65006]
[1674087147312,5.16992,1518.8,1518.3,16.318908]
[1674087150964,5.16992,1518.8,1518.3,16.316908]
[1674087151089,5.16992,1518.8,1518.3,16.318908]
[1674087151828,4.67602,1518.8,1518.3,16.318908]
[1674087152039,4.60902,1518.8,1518.3,16.318908]
[1674087153300,6.2532967,1518.8,1518.3,16.318908]
[1674087153548,6.99756372,1518.8,1518.3,16.318908]
[1674087154145,6.3202967,1518.8,1518.3,16.318908]
[1674087156055,6.99756372,1518.8,1518.3,16.32450516]
[1674087156295,10.9293167,1518.8,1518.3,16.32450516]
[1674087156508,11.60658372,1518.8,1518.3,16.32450516]
[1674087157027,1.16065837,1518.7,1518.3,6.65565716]
[1674087157183,12.42966539,1518.7,1518.3,0.064]
[1674087157392,12.42966539,1518.7,1518.1,0.064]
[1674087157393,1.381,1518.4,1518.1,0.064]
[1674087157604,9.22082,1518.3,1518.0,1.76769149]
[1674087157929,9.28782,1518.3,1517.9,14.2027]
[1674087158287,1.376,1518.0,1517.9,0.064]
[1674087158505,4.61102,1518.1,1517.7,0.07561098]
[1674087158814,5.0032282,1518.1,1517.7,1.90730633]
[1674087159020,5.0702282,1518.1,1517.8,1.1440693]
[1674087160177,4.61163,1517.9,1517.7,1.07561098]
[1674087160395,10.60826,1517.9,1517.7,1.07561098]
[1674087160700,10.67526,1517.9,1517.7,0.07561098]
[1674087160918,1.067526,1517.8,1517.7,0.07561098]
[1674087162222,1.067526,1517.8,1517.6,0.05030092]
[1674087163817,5.679466,1517.8,1517.6,0.05030092]
[1674087164044,5.746466,1517.8,1517.6,0.05030092]
[1674087164252,10.358406,1517.8,1517.6,0.05030092]
[1674087164554,5.746466,1517.8,1517.6,0.05030092]
[1674087165631,0.067,1517.8,1517.6,0.05030092]
[1674087165845,0.067,1517.8,1517.7,1.14412488]
[1674087166059,5.17232,1518.1,1517.6,7.39322697]
[1674087166226,5.17232,1518.1,1517.7,1.14410781]
[1674087166435,7.150634,1518.1,1517.6,6.70560092]
[1674087166701,7.150634,1518.1,1517.6,6.70360092]
[1674087167081,7.150634,1518.1,1517.6,7.70360092]
[1674087168173,6.656534,1518.1,1517.7,1.14408688]
[1674087168332,4.67822,1518.1,1517.7,1.95353139]
[1674087168547,4.61122,1518.1,1517.7,1.95353139]
[1674087168805,4.61122,1518.1,1517.7,0.95353139]
[1674087169027,10.66975,1518.2,1517.7,7.54240139]
[1674087169209,7.598245,1518.2,1517.7,15.19531139]
[1674087169546,0.067,1518.2,1517.7,15.19531139]
[1674087169772,29.20762,1518.3,1517.7,15.19531139]
[1674087170278,29.20762,1518.3,1517.7,15.20091076]
[1674087170431,11.16722,1518.3,1517.7,15.20091076]
[1674087171215,11.16722,1518.3,1517.7,14.20091076]
[1674087171430,13.807019,1518.3,1517.8,1.0]
[1674087171625,13.807019,1518.3,1517.7,20.79182076]
[1674087171807,13.807019,1518.3,1517.7,20.78982076]
[1674087172471,13.807019,1518.3,1517.8,1.0]
[1674087172850,7.317249,1518.3,1517.9,0.00559863]
[1674087173056,4.67745,1518.3,1517.9,8.01167849]
[1674087173322,4.61045,1518.3,1517.9,9.07567849]
[1674087173900,4.61045,1518.3,1517.9,8.07567849]
[1674087174431,4.61045,1518.3,1517.9,9.07567849]
[1674087174850,4.61045,1518.3,1517.9,8.07567849]
[1674087175165,6.000262,1518.3,1517.9,0.06959863]
[1674087175411,10.677712,1518.3,1517.9,0.00559863]
[1674087176803,9.22216,1518.1,1517.7,0.064]
[1674087176957,10.67416,1518.1,1517.7,3.0]
[1674087179362,0.067,1518.1,1517.7,9.58879]
[1674087179540,10.5197912,1518.2,1517.7,9.58879]
[1674087179541,10.5867912,1518.2,1517.7,16.17509629]
[1674087179919,10.5867912,1518.2,1517.7,17.17509629]
[1674087180704,10.5867912,1518.2,1517.7,16.17509629]
[1674087180919,4.67801,1518.2,1517.7,24.44540556]
[1674087181150,4.61101,1518.2,1517.7,24.44540556]
[1674087181922,6.05345,1518.3,1517.8,1.0]
[1674087182133,7.169218,1518.3,1517.8,7.5882]
[1674087182367,0.067,1518.3,1517.8,7.6522]
[1674087182548,24.34614,1518.5,1517.9,3.0]
[1674087182549,21.1882,1518.5,1517.9,3.0]
[1674087182874,6.06184,1518.5,1518.0,6.58726]
[1674087183083,7.896374,1518.4,1518.0,0.06107984]
[1674087183343,5.283374,1518.4,1517.9,16.23677984]
[1674087183491,5.283374,1518.4,1517.9,17.23677984]
[1674087183703,5.283374,1518.4,1518.0,1.0]
[1674087183928,5.283374,1518.4,1517.9,23.82651984]
[1674087184161,4.67719,1518.4,1518.0,2.72367798]
[1674087184388,4.61019,1518.4,1518.0,9.31127798]
[1674087184576,4.61019,1518.4,1518.0,9.37235782]
[1674087184966,10.67183,1518.5,1518.0,15.95996782]
[1674087186021,10.67183,1518.5,1518.0,14.95996782]
[1674087186343,13.012826,1518.5,1518.0,14.95996782]
[1674087187487,11.627826,1518.5,1518.1,1.0]
[1674087187747,11.627826,1518.5,1518.0,15.96196782]
[1674087187966,11.627826,1518.5,1518.0,15.95996782]
[1674087188124,11.627826,1518.5,1518.1,1.0]
[1674087189027,0.067,1518.5,1518.1,2.69619678]
[1674087189168,5.99473,1518.6,1518.1,20.25547678]
[1674087189169,0.067,1518.6,1518.1,20.25547678]
[1674087189374,10.0,1518.7,1518.3,13.17224]
[1674087189375,0.067,1518.7,1518.3,13.17224]
[1674087189591,4.60905,1518.8,1518.3,13.23331984]
[1674087190072,5.16961,1518.9,1518.4,1.0]
[1674087190380,5.16961,1518.9,1518.4,15.59465198]
[1674087190570,4.67571,1518.9,1518.4,15.65573182]
[1674087190745,4.60871,1518.9,1518.4,14.65573182]
[1674087191588,8.35776692,1518.9,1518.4,13.23239984]
[1674087191814,1.385,1518.8,1518.4,0.06107984]
[1674087192022,9.21846,1518.7,1518.2,0.06107984]
[1674087192270,5.531416,1518.6,1518.2,3.0]
[1674087192426,5.531416,1518.6,1518.2,9.58667]
[1674087192427,0.988846,1518.6,1518.2,9.58667]
[1674087192637,0.921846,1518.6,1518.2,9.64774984]
[1674087192842,5.531376,1518.6,1518.2,9.64774984]
[1674087193107,0.067,1518.6,1518.3,1.0]
[1674087193324,4.60921,1518.7,1518.3,1.0]
[1674087193842,4.60921,1518.7,1518.2,16.23648984]
[1674087194053,6.2041737,1518.7,1518.2,16.23448984]
[1674087194267,6.2711737,1518.7,1518.2,16.23448984]
[1674087195315,10.8803837,1518.7,1518.2,16.23448984]
[1674087195686,6.2711737,1518.7,1518.2,16.23448984]
[1674087197518,0.62711737,1518.6,1518.2,16.23448984]
[1674087197732,2.01211737,1518.6,1518.2,0.06107984]
[1674087198070,5.98526,1518.4,1518.1,0.06107984]
[1674087198223,0.598526,1518.3,1518.0,0.06107984]
[1674087198430,0.598526,1518.3,1517.9,0.06107984]
[1674087198640,0.598526,1518.3,1517.8,31.18240369]
[1674087198961,0.598526,1518.3,1517.8,29.50044984]
[1674087199172,0.598526,1518.3,1517.8,22.59693299]
[1674087199381,9.819666,1518.3,1517.9,3.0]
[1674087199648,5.5927066,1518.2,1517.9,3.0]
[1674087199793,5.6597066,1518.2,1517.9,3.0]
[1674087202745,5.6597066,1518.2,1517.8,22.59918985]
[1674087202949,11.6554466,1518.2,1517.8,0.06107984]
[1674087203197,5.99239,1518.0,1517.7,1.68245585]
[1674087203368,6.05939,1518.0,1517.6,7.39000681]
[1674087203588,10.67078,1518.0,1517.7,1.14411733]
[1674087203854,0.605939,1517.9,1517.7,1.14411733]
[1674087204160,5.217569,1517.9,1517.7,1.14411733]
[1674087204376,5.284569,1517.9,1517.6,0.05030092]
[1674087204529,5.034569,1517.9,1517.6,0.05030092]
[1674087205111,5.034569,1517.9,1517.6,1.05030092]
[1674087205273,5.034569,1517.9,1517.6,0.05030092]
[1674087205482,9.646199,1517.9,1517.6,0.05030092]
[1674087205841,0.9646199,1517.8,1517.6,0.05030092]
[1674087206061,11.5734899,1517.8,1517.6,0.05030092]
[1674087206227,11.6404899,1517.8,1517.6,0.05030092]
[1674087206419,1.381,1517.7,1517.6,0.05030092]
[1674087206795,10.83548,1517.7,1517.6,0.05030092]
[1674087207109,14.44599699,1517.7,1517.6,0.05030092]
[1674087207298,17.73774458,1517.7,1517.6,0.05030092]
[1674087207533,22.23194458,1517.7,1517.6,0.05030092]
[1674087208776,22.23194458,1517.7,1517.6,9.2e-07]
[1674087208989,21.86868631,1517.7,1517.5,0.07468994]
[1674087209204,16.55757446,1517.6,1517.5,0.07468994]
[1674087209523,15.23957446,1517.6,1517.5,0.07468994]
[1674087210143,16.61757446,1517.6,1517.5,0.07468994]
[1674087210524,2.66175745,1517.5,1517.4,0.07468994]
[1674087210773,25.29920504,1517.5,1517.4,0.07468994]
[1674087210982,30.54648537,1517.5,1517.0,0.07469181]
[1674087211200,6.89,1517.3,1517.0,0.07469181]
[1674087211515,27.94202759,1517.2,1517.0,0.07469181]
[1674087211732,7.06174759,1517.1,1516.9,0.08296262]
[1674087211940,15.22111,1517.0,1516.9,0.08296262]
[1674087212099,15.51811,1517.0,1516.9,0.08296262]
[1674087212303,27.81934335,1517.0,1516.9,0.08296262]
[1674087212514,29.69884335,1517.0,1516.9,0.08296262]
[1674087212721,32.69884335,1517.0,1516.9,0.08296262]
[1674087212927,16.52472576,1517.0,1516.9,0.08296262]
[1674087213199,6.79087,1517.0,1516.9,0.08296262]
[1674087213509,0.7915,1517.0,1516.9,0.08296262]
[1674087213682,0.7245,1517.0,1516.9,0.08296262]
[1674087214104,0.88786465,1517.0,1516.9,0.08296262]
[1674087214508,17.06898224,1517.0,1516.9,0.08296262]
[1674087214716,19.49894046,1517.0,1516.9,0.08296262]
[1674087215188,19.99344046,1517.0,1516.9,0.08296262]
[1674087215346,24.60781046,1517.0,1516.9,0.08296262]
[1674087216086,25.24455219,1517.0,1516.9,0.08296262]
[1674087216456,18.35455219,1517.0,1516.9,0.08296262]
[1674087217066,10.4484346,1517.0,1516.9,0.08296262]
[1674087217253,2.6065,1517.0,1516.9,0.08296262]
[1674087217472,1.452,1517.1,1516.9,0.08296262]
[1674087217719,1.385,1517.1,1516.9,0.08296262]
[1674087220462,5.9991,1517.1,1516.9,0.08296262]
[1674087220632,6.0661,1517.1,1516.9,0.08296262]
[1674087220856,1.97861,1517.0,1516.9,0.08296262]
[1674087221067,11.20735,1517.0,1516.9,0.08296262]
[1674087221273,14.79609759,1517.0,1516.9,0.08296262]
[1674087221485,15.92733932,1517.0,1516.9,0.08296262]
[1674087222054,16.29059759,1517.0,1516.9,0.08296262]
[1674087222219,15.29059759,1517.0,1516.9,0.08296262]
[1674087222649,7.15448,1517.0,1516.9,0.08296262]
[1674087223382,0.5615,1517.0,1516.9,0.08296262]
[1674087223599,0.66,1517.0,1516.9,0.08296262]
[1674087224065,1.452,1517.1,1516.9,0.08296262]
[1674087224296,1.8794,1517.1,1516.9,0.08296262]
[1674087224589,6.49349,1517.1,1516.9,0.08296262]
[1674087224808,5.17549,1517.1,1516.9,0.08296262]
[1674087225171,0.5614,1517.1,1516.9,0.08296262]
[1674087225417,0.4944,1517.1,1516.9,0.08296262]
[1674087225823,5.36976,1517.2,1516.9,0.08296262]
[1674087226235,0.067,1517.2,1516.9,0.08296262]
[1674087226450,44.09352,1517.4,1516.9,6.67534262]
[1674087226745,44.09352,1517.4,1516.9,6.73642246]
[1674087226746,17.68042,1517.4,1516.9,6.73642246]
[1674087227011,0.067,1517.4,1516.9,13.32881246]
[1674087227178,0.5613,1517.5,1516.9,17.5806884]
[1674087227541,0.4943,1517.6,1517.1,1.38]
[1674087227755,0.4943,1517.6,1517.2,13.31993]
[1674087228058,0.067,1517.7,1517.2,14.38100984]
[1674087228059,0.4942,1517.7,1517.2,14.38100984]
[1674087228272,10.61016,1517.6,1517.2,0.06107984]
[1674087228490,10.67716,1517.6,1517.0,0.06107984]
[1674087228797,10.67716,1517.6,1516.9,14.32881246]
[1674087228952,4.61317,1517.4,1516.9,14.32881246]
[1674087229636,12.51806759,1517.4,1516.9,0.14404246]
[1674087229809,12.51806759,1517.4,1516.9,0.08296262]
[1674087229810,1.25180676,1517.3,1516.9,0.08296262]
[1674087230022,4.61379,1517.2,1516.9,0.08296262]
[1674087232430,9.22758,1517.2,1516.9,0.08296262]
[1674087232644,9.29458,1517.2,1516.9,0.08296262]
[1674087232890,0.929458,1517.1,1516.9,0.08296262]
[1674087233535,5.543528,1517.1,1516.9,0.08296262]
[1674087233722,10.224598,1517.1,1516.9,0.08296262]
[1674087236093,7.3845,1517.0,1516.9,0.08296262]
[1674087236308,7.62845,1516.9,1516.3,0.09402161]
[1674087236568,17.36665759,1516.8,1516.3,0.09402161]